[Event "Open NK Rapid 2025"]
[Site "Helmond, Netherlands"]
[Date "2025.05.03"]
[Round "6.25"]
[White "Cayonlu, Arda"]
[Black "Chua, Ethan"]
[Result "1/2-1/2"]
[TimeControl "15+5"]
[WhiteFideId "6339786"]
[BlackFideId "1089250"]
[WhiteElo "1885"]
[BlackElo "2069"]

1. e4 {[%clk 00:15:09]} c5 {[%clk 00:15:06]} {[%emt 00:00:04]} 2. Nc3 {[%clk
00:15:12]} {[%emt 00:00:02]} Nc6 {[%clk 00:15:10]} {[%emt 00:00:02]} 3. g3
{[%clk 00:15:15]} {[%emt 00:00:02]} g6 {[%clk 00:15:09]} {[%emt 00:00:06]} 4.
Bg2 {[%clk 00:15:13]} {[%emt 00:00:06]} Bg7 {[%clk 00:15:12]} {[%emt 00:00:03]}
5. Nge2 {[%clk 00:15:16]} {[%emt 00:00:02]} e6 {[%clk 00:14:59]} {[%emt
00:00:17]} 6. d3 {[%clk 00:15:10]} {[%emt 00:00:11]} Nge7 {[%clk 00:14:55]}
{[%emt 00:00:10]} 7. Be3 {[%clk 00:15:12]} {[%emt 00:00:02]} Nd4 {[%clk
00:14:32]} {[%emt 00:00:28]} 8. O-O {[%clk 00:14:09]} {[%emt 00:01:08]} O-O
{[%clk 00:14:32]} {[%emt 00:00:04]} 9. Qd2 {[%clk 00:13:38]} {[%emt 00:00:38]}
Rb8 {[%clk 00:14:28]} {[%emt 00:00:09]} 10. Nd1 {[%clk 00:13:40]} {[%emt
00:00:02]} b5 {[%clk 00:13:52]} {[%emt 00:00:42]} 11. Nxd4 {[%clk 00:12:10]}
{[%emt 00:01:35]} cxd4 {[%clk 00:13:54]} {[%emt 00:00:03]} 12. Bh6 {[%clk
00:12:12]} {[%emt 00:00:02]} d6 {[%clk 00:13:21]} {[%emt 00:00:39]} 13. Bxg7
{[%clk 00:12:12]} {[%emt 00:00:05]} Kxg7 {[%clk 00:13:24]} {[%emt 00:00:01]} 14.
c3 {[%clk 00:12:00]} {[%emt 00:00:18]} dxc3 {[%clk 00:13:24]} {[%emt 00:00:05]}
15. bxc3 {[%clk 00:11:57]} {[%emt 00:00:08]} Bd7 {[%clk 00:12:46]} {[%emt
00:00:43]} 16. Ne3 {[%clk 00:11:50]} {[%emt 00:00:12]} Qa5 {[%clk 00:11:53]}
{[%emt 00:00:58]} 17. Ng4 {[%clk 00:10:46]} {[%emt 00:01:09]} f5 {[%clk
00:09:33]} {[%emt 00:02:25]} 18. exf5 {[%clk 00:09:59]} {[%emt 00:00:52]} Nxf5
{[%clk 00:09:05]} {[%emt 00:00:32]} 19. Ne3 {[%clk 00:09:32]} {[%emt 00:00:31]}
Nxe3 {[%clk 00:08:47]} {[%emt 00:00:24]} 20. Qxe3 {[%clk 00:09:10]} {[%emt
00:00:27]} Qb6 {[%clk 00:08:35]} {[%emt 00:00:18]} 21. Rab1 {[%clk 00:08:17]}
{[%emt 00:00:58]} Qxe3 {[%clk 00:08:27]} {[%emt 00:00:13]} 22. fxe3 {[%clk
00:08:19]} {[%emt 00:00:02]} Rxf1+ {[%clk 00:08:30]} {[%emt 00:00:02]} 23. Bxf1
{[%clk 00:08:08]} {[%emt 00:00:16]} Kf6 {[%clk 00:08:27]} {[%emt 00:00:09]} 24.
Kf2 {[%clk 00:07:22]} {[%emt 00:00:50]} a5 {[%clk 00:07:43]} {[%emt 00:00:49]}
25. a3 {[%clk 00:06:16]} {[%emt 00:01:12]} d5 {[%clk 00:07:09]} {[%emt
00:00:39]} 26. Ke1 {[%clk 00:06:13]} {[%emt 00:00:08]} Ke5 {[%clk 00:06:59]}
{[%emt 00:00:15]} 27. Kd2 {[%clk 00:06:15]} {[%emt 00:00:02]} Kd6 {[%clk
00:06:52]} {[%emt 00:00:13]} 28. Be2 {[%clk 00:05:46]} {[%emt 00:00:33]} Rf8
{[%clk 00:06:31]} {[%emt 00:00:26]} 29. Rf1 {[%clk 00:05:34]} {[%emt 00:00:17]}
Rxf1 {[%clk 00:05:41]} {[%emt 00:00:55]} 30. Bxf1 {[%clk 00:05:38]} {[%emt
00:00:01]} e5 {[%clk 00:05:37]} {[%emt 00:00:10]} 31. d4 {[%clk 00:05:02]}
{[%emt 00:00:40]} g5 {[%clk 00:04:57]} {[%emt 00:00:45]} 32. Ke1 {[%clk
00:04:13]} {[%emt 00:00:52]} e4 {[%clk 00:04:40]} {[%emt 00:00:24]} 33. h4
{[%clk 00:03:59]} {[%emt 00:00:19]} g4 {[%clk 00:04:26]} {[%emt 00:00:19]} 34.
Kd2 {[%clk 00:03:50]} {[%emt 00:00:14]} Kc6 {[%clk 00:04:30]} {[%emt 00:00:02]}
35. Kc1 {[%clk 00:03:48]} {[%emt 00:00:07]} Kb6 {[%clk 00:04:31]} {[%emt
00:00:03]} 36. Kb2 {[%clk 00:03:49]} {[%emt 00:00:03]} Bc8 {[%clk 00:04:25]}
{[%emt 00:00:12]} 37. Kb3 {[%clk 00:03:45]} {[%emt 00:00:09]} Ba6 {[%clk
00:04:27]} {[%emt 00:00:04]} 38. Be2 {[%clk 00:03:00]} {[%emt 00:00:48]} h5
{[%clk 00:02:43]} {[%emt 00:01:50]} 39. Bd1 {[%clk 00:02:30]} {[%emt 00:00:35]}
Kc6 {[%clk 00:02:22]} {[%emt 00:00:25]} 40. Be2 {[%clk 00:02:16]} {[%emt
00:00:19]} Kb6 {[%clk 00:02:01]} {[%emt 00:00:27]} 41. Bd1 {[%clk 00:02:17]}
{[%emt 00:00:04]} Bc8 {[%clk 00:01:52]} {[%emt 00:00:15]} 42. Be2 {[%clk
00:02:03]} {[%emt 00:00:18]} Bd7 {[%clk 00:01:45]} {[%emt 00:00:07]} 1/2-1/2

[Event "Open NK Rapid 2025"]
[Site "Helmond, Netherlands"]
[Date "2025.05.03"]
[Round "7.1"]
[White "Warmerdam, Max"]
[Black "Beerdsen, Thomas"]
[Result "1-0"]
[TimeControl "15+5"]
[WhiteFideId "1048104"]
[BlackFideId "1030108"]
[WhiteElo "2517"]
[BlackElo "2485"]

1. c4 {[%clk 00:15:08]} {[%emt 00:00:02]} c6 {[%clk 00:14:51]} {[%emt
00:00:19]} 2. Nf3 {[%clk 00:15:09]} {[%emt 00:00:04]} d5 {[%clk 00:14:56]}
{[%emt 00:00:01]} 3. g3 {[%clk 00:15:12]} {[%emt 00:00:02]} Nf6 {[%clk
00:14:52]} {[%emt 00:00:08]} 4. Bg2 {[%clk 00:15:16]} {[%emt 00:00:02]} g6
{[%clk 00:14:41]} {[%emt 00:00:16]} 5. b3 {[%clk 00:15:20]} Bg7 {[%clk
00:14:43]} {[%emt 00:00:03]} 6. Bb2 {[%clk 00:15:23]} {[%emt 00:00:02]} O-O
{[%clk 00:14:43]} {[%emt 00:00:04]} 7. O-O {[%clk 00:15:26]} {[%emt 00:00:02]}
Bf5 {[%clk 00:14:22]} {[%emt 00:00:26]} 8. d3 {[%clk 00:15:29]} {[%emt
00:00:02]} a5 {[%clk 00:13:53]} {[%emt 00:00:35]} 9. Nc3 {[%clk 00:15:13]}
{[%emt 00:00:21]} d4 {[%clk 00:13:22]} {[%emt 00:00:35]} 10. Na4 {[%clk
00:14:46]} {[%emt 00:00:33]} Ne8 {[%clk 00:13:23]} {[%emt 00:00:03]} 11. Qd2
{[%clk 00:13:28]} {[%emt 00:01:23]} e5 {[%clk 00:13:03]} {[%emt 00:00:25]} 12.
Rfe1 {[%clk 00:11:54]} {[%emt 00:01:39]} Nd6 {[%clk 00:12:35]} {[%emt
00:00:34]} 13. e3 {[%clk 00:10:22]} {[%emt 00:01:38]} dxe3 {[%clk 00:10:44]}
{[%emt 00:01:56]} 14. Qxe3 {[%clk 00:10:19]} {[%emt 00:00:07]} Re8 {[%clk
00:09:30]} {[%emt 00:01:18]} 15. Nb6 {[%clk 00:06:10]} {[%emt 00:04:15]} Ra6
{[%clk 00:08:07]} {[%emt 00:01:28]} 16. c5 {[%clk 00:06:14]} Nc8 {[%clk
00:07:22]} {[%emt 00:00:50]} 17. Nc4 {[%clk 00:05:41]} {[%emt 00:00:38]} Nd7
{[%clk 00:07:19]} {[%emt 00:00:09]} 18. Rad1 {[%clk 00:04:42]} {[%emt
00:01:03]} Bg4 {[%clk 00:06:02]} {[%emt 00:01:22]} 19. h3 {[%clk 00:02:52]}
{[%emt 00:01:56]} Bxf3 {[%clk 00:06:05]} {[%emt 00:00:01]} 20. Bxf3 {[%clk
00:02:55]} {[%emt 00:00:02]} Re6 {[%clk 00:06:10]} 21. Bg4 {[%clk 00:02:38]}
{[%emt 00:00:23]} f5 {[%clk 00:06:13]} {[%emt 00:00:01]} 22. Bf3 {[%clk
00:02:42]} {[%emt 00:00:01]} Qe7 {[%clk 00:06:11]} {[%emt 00:00:08]} 23. Bg2
{[%emt 00:03:58]} Ra8 {[%clk 00:03:12]} 24. f4 {[%clk 00:01:40]} {[%emt
00:00:16]} Nxc5 {[%clk 00:02:11]} {[%emt 00:01:07]} 25. fxe5 {[%clk 00:01:24]}
{[%emt 00:00:21]} Nd7 {[%clk 00:02:08]} {[%emt 00:00:08]} 26. d4 {[%clk
00:01:13]} {[%emt 00:00:17]} Ncb6 {[%clk 00:02:12]} 27. Ba3 {[%clk 00:00:51]}
{[%emt 00:00:28]} Qd8 {[%clk 00:02:10]} {[%emt 00:00:06]} 28. Nd6 {[%clk
00:00:45]} {[%emt 00:00:11]} Qc7 {[%clk 00:01:54]} {[%emt 00:00:21]} 29. Qf4
{[%clk 00:00:39]} {[%emt 00:00:11]} a4 {[%clk 00:01:53]} {[%emt 00:00:07]} 30.
b4 {[%clk 00:00:42]} {[%emt 00:00:02]} Rd8 {[%clk 00:01:38]} {[%emt 00:00:19]}
31. b5 {[%clk 00:00:36]} {[%emt 00:00:11]} Nd5 {[%clk 00:01:24]} {[%emt
00:00:19]} 32. Qc1 {[%clk 00:00:22]} {[%emt 00:00:19]} Qb6 {[%clk 00:01:19]}
{[%emt 00:00:10]} 33. Qc4 {[%clk 00:00:25]} {[%emt 00:00:02]} Nf8 {[%clk
00:00:35]} {[%emt 00:00:50]} 34. Bxd5 {[%clk 00:00:28]} {[%emt 00:00:01]} cxd5
{[%clk 00:00:39]} {[%emt 00:00:02]} 35. Qxd5 {[%clk 00:00:32]} Rd7 {[%clk
00:00:43]} {[%emt 00:00:01]} 36. Rc1 {[%clk 00:00:32]} {[%emt 00:00:04]} h5
{[%clk 00:00:39]} {[%emt 00:00:09]} 37. Rc8 {[%clk 00:00:29]} {[%emt 00:00:08]}
Kh7 {[%clk 00:00:33]} {[%emt 00:00:11]} 38. Qc5 {[%clk 00:00:19]} {[%emt
00:00:16]} Rdxd6 {[%clk 00:00:17]} {[%emt 00:00:20]} 39. exd6 {[%clk 00:00:18]}
{[%emt 00:00:06]} Rxe1+ {[%clk 00:00:20]} {[%emt 00:00:02]} 40. Kg2 {[%clk
00:00:21]} {[%emt 00:00:01]} Nd7 {[%clk 00:00:15]} {[%emt 00:00:11]} 41. Qxb6
{[%clk 00:00:25]} {[%emt 00:00:01]} Nxb6 {[%clk 00:00:19]} 42. Bc5 {[%clk
00:00:23]} {[%emt 00:00:07]} Nd7 {[%clk 00:00:14]} {[%emt 00:00:10]} 43. Rc7
{[%clk 00:00:26]} {[%emt 00:00:02]} Nf6 {[%clk 00:00:11]} {[%emt 00:00:08]} 44.
d7 {[%clk 00:00:29]} {[%emt 00:00:01]} Nxd7 {[%clk 00:00:12]} {[%emt 00:00:04]}
45. Rxd7 {[%clk 00:00:34]} {[%emt 00:00:01]} Kh6 {[%clk 00:00:13]} {[%emt
00:00:04]} 46. a3 {[%clk 00:00:33]} {[%emt 00:00:06]} Re2+ {[%clk 00:00:09]}
{[%emt 00:00:09]} 47. Kf3 {[%clk 00:00:35]} {[%emt 00:00:04]} Rh2 {[%clk
00:00:11]} {[%emt 00:00:02]} 48. h4 {[%clk 00:00:36]} {[%emt 00:00:03]} b6
{[%clk 00:00:10]} {[%emt 00:00:07]} 49. Bxb6 {[%clk 00:00:39]} {[%emt
00:00:02]} Rb2 {[%clk 00:00:14]} {[%emt 00:00:02]} 50. d5 {[%clk 00:00:39]}
{[%emt 00:00:05]} Rb3+ {[%clk 00:00:13]} {[%emt 00:00:05]} 51. Be3+ {[%clk
00:00:28]} {[%emt 00:00:16]} f4 {[%clk 00:00:14]} {[%emt 00:00:04]} 52. Kxf4
{[%clk 00:00:30]} {[%emt 00:00:03]} Rxa3 {[%clk 00:00:18]} {[%emt 00:00:01]} 53.
Ke4+ {[%clk 00:00:34]} {[%emt 00:00:01]} g5 {[%clk 00:00:22]} 54. hxg5+ {[%clk
00:00:29]} {[%emt 00:00:10]} Kg6 {[%clk 00:00:26]} 55. Ra7 {[%clk 00:00:30]}
{[%emt 00:00:05]} Bf8 {[%clk 00:00:26]} {[%emt 00:00:05]} 56. Ra6+ {[%clk
00:00:32]} {[%emt 00:00:03]} Kf7 {[%clk 00:00:28]} {[%emt 00:00:03]} 57. g6+
{[%clk 00:00:36]} {[%emt 00:00:02]} Kg8 {[%clk 00:00:32]} 58. b6 {[%clk
00:00:32]} {[%emt 00:00:09]} Kg7 {[%clk 00:00:24]} {[%emt 00:00:12]} 59. Bd4+
{[%clk 00:00:34]} {[%emt 00:00:03]} Kg8 {[%clk 00:00:19]} {[%emt 00:00:10]} 60.
Ra8 {[%clk 00:00:37]} {[%emt 00:00:02]} Rxg3 {[%clk 00:00:12]} {[%emt
00:00:12]} 61. b7 {[%clk 00:00:33]} {[%emt 00:00:09]} 1-0

[Event "Open NK Rapid 2025"]
[Site "Helmond, Netherlands"]
[Date "2025.05.03"]
[Round "7.2"]
[White "Roebers, Eline"]
[Black "Sydykov, Bayastan"]
[Result "1/2-1/2"]
[TimeControl "15+5"]
[WhiteFideId "1058401"]
[BlackFideId "13829610"]
[WhiteElo "2390"]
[BlackElo "2297"]

1. e4 {[%clk 00:15:08]} {[%emt 00:00:01]} e6 {[%clk 00:15:09]} {[%emt
00:00:01]} 2. d4 {[%clk 00:14:56]} {[%emt 00:00:18]} d5 {[%clk 00:15:13]} 3.
Nc3 {[%clk 00:14:59]} {[%emt 00:00:01]} Nf6 {[%clk 00:15:17]} {[%emt 00:00:02]}
4. e5 {[%clk 00:15:02]} {[%emt 00:00:02]} Nfd7 {[%clk 00:15:21]} 5. Nce2 {[%clk
00:15:07]} c5 {[%clk 00:15:25]} {[%emt 00:00:02]} 6. c3 {[%clk 00:15:11]} Nc6
{[%clk 00:15:29]} {[%emt 00:00:01]} 7. Nf3 {[%clk 00:15:15]} Qb6 {[%clk
00:15:31]} {[%emt 00:00:02]} 8. h4 {[%clk 00:14:58]} {[%emt 00:00:23]} cxd4
{[%clk 00:15:21]} {[%emt 00:00:15]} 9. cxd4 {[%clk 00:15:01]} {[%emt 00:00:02]}
f6 {[%clk 00:15:16]} {[%emt 00:00:09]} 10. exf6 {[%clk 00:14:54]} {[%emt
00:00:12]} Nxf6 {[%clk 00:15:19]} {[%emt 00:00:02]} 11. Nc3 {[%clk 00:14:27]}
{[%emt 00:00:32]} Bd6 {[%clk 00:14:44]} {[%emt 00:00:40]} 12. Bd3 {[%clk
00:13:35]} {[%emt 00:00:57]} Bd7 {[%clk 00:14:18]} {[%emt 00:00:31]} 13. O-O
{[%clk 00:13:26]} {[%emt 00:00:15]} O-O {[%clk 00:14:19]} {[%emt 00:00:03]} 14.
Re1 {[%clk 00:12:45]} {[%emt 00:00:47]} Rae8 {[%clk 00:13:23]} {[%emt
00:01:01]} 15. Be3 {[%clk 00:11:34]} {[%emt 00:01:15]} Re7 {[%clk 00:11:44]}
{[%emt 00:01:44]} 16. a3 {[%clk 00:11:12]} {[%emt 00:00:28]} Be8 {[%clk
00:10:02]} {[%emt 00:01:47]} 17. Ne5 {[%clk 00:09:16]} {[%emt 00:02:00]} a6
{[%clk 00:09:08]} {[%emt 00:01:00]} 18. Qd2 {[%clk 00:07:30]} {[%emt 00:01:50]}
Qc7 {[%clk 00:08:11]} {[%emt 00:01:03]} 19. f4 {[%clk 00:07:34]} Na5 {[%clk
00:07:02]} {[%emt 00:01:13]} 20. Qc2 {[%clk 00:06:15]} {[%emt 00:01:24]} Nc4
{[%clk 00:05:48]} {[%emt 00:01:20]} 21. Bf2 {[%clk 00:06:17]} {[%emt 00:00:02]}
b5 {[%clk 00:05:03]} {[%emt 00:00:51]} 22. Rac1 {[%clk 00:06:03]} {[%emt
00:00:19]} Kh8 {[%clk 00:04:41]} {[%emt 00:00:26]} 23. g3 {[%clk 00:05:53]}
{[%emt 00:00:15]} Bh5 {[%clk 00:04:00]} {[%emt 00:00:46]} 24. Nb1 {[%clk
00:05:04]} {[%emt 00:00:55]} Qb7 {[%clk 00:03:45]} {[%emt 00:00:19]} 25. b3
{[%clk 00:02:44]} {[%emt 00:02:26]} Nxa3 {[%clk 00:01:16]} {[%emt 00:02:34]} 26.
Qc6 {[%clk 00:02:48]} {[%emt 00:00:01]} Qb8 {[%clk 00:01:18]} {[%emt 00:00:03]}
27. Nxa3 {[%clk 00:02:16]} {[%emt 00:00:37]} Bxa3 {[%clk 00:01:22]} 28. Ra1
{[%clk 00:02:20]} {[%emt 00:00:01]} Bb4 {[%clk 00:00:59]} {[%emt 00:00:27]} 29.
Rec1 {[%clk 00:02:19]} {[%emt 00:00:05]} a5 {[%clk 00:00:46]} {[%emt 00:00:19]}
30. Qxb5 {[%clk 00:01:54]} {[%emt 00:00:31]} Rb7 {[%clk 00:00:48]} {[%emt
00:00:02]} 31. Qc6 {[%clk 00:01:29]} {[%emt 00:00:30]} Rb6 {[%clk 00:00:47]}
{[%emt 00:00:07]} 32. Qc2 {[%clk 00:01:28]} {[%emt 00:00:06]} Qd6 {[%clk
00:00:41]} {[%emt 00:00:10]} 33. Qc7 {[%clk 00:01:16]} {[%emt 00:00:17]} Ne8
{[%clk 00:00:17]} {[%emt 00:00:29]} 34. Qxd6 {[%clk 00:01:17]} {[%emt
00:00:05]} Rxd6 {[%clk 00:00:16]} {[%emt 00:00:06]} 35. Rc8 {[%clk 00:01:08]}
{[%emt 00:00:14]} Kg8 {[%clk 00:00:10]} {[%emt 00:00:11]} 36. Nc6 {[%clk
00:00:39]} {[%emt 00:00:34]} Nf6 {[%clk 00:00:08]} {[%emt 00:00:06]} 37. Rxf8+
{[%clk 00:00:34]} {[%emt 00:00:11]} Kxf8 {[%clk 00:00:12]} 38. Nxb4 {[%clk
00:00:38]} {[%emt 00:00:01]} axb4 {[%clk 00:00:16]} 39. Be1 {[%clk 00:00:42]}
Rb6 {[%clk 00:00:18]} {[%emt 00:00:03]} 40. Ra4 {[%clk 00:00:47]} Ne4 {[%clk
00:00:19]} {[%emt 00:00:04]} 41. Bxe4 {[%clk 00:00:40]} {[%emt 00:00:12]} dxe4
{[%clk 00:00:23]} 42. Kf2 {[%clk 00:00:44]} Bd1 {[%clk 00:00:24]} {[%emt
00:00:04]} 43. Rxb4 {[%clk 00:00:43]} {[%emt 00:00:06]} Rxb4 {[%clk 00:00:27]}
{[%emt 00:00:02]} 44. Bxb4+ {[%clk 00:00:47]} {[%emt 00:00:01]} Kf7 {[%clk
00:00:31]} 45. Ke3 {[%clk 00:00:50]} {[%emt 00:00:02]} Bxb3 {[%clk 00:00:35]}
46. Kxe4 {[%clk 00:00:54]} {[%emt 00:00:01]} Bd5+ {[%clk 00:00:40]} 47. Ke5
{[%clk 00:00:57]} {[%emt 00:00:02]} h5 {[%clk 00:00:43]} {[%emt 00:00:02]} 48.
f5 {[%clk 00:00:57]} {[%emt 00:00:05]} g6 {[%clk 00:00:27]} {[%emt 00:00:20]}
49. fxe6+ {[%clk 00:00:52]} {[%emt 00:00:11]} Bxe6 {[%clk 00:00:31]} {[%emt
00:00:01]} 50. d5 {[%clk 00:00:51]} {[%emt 00:00:06]} Bf5 {[%clk 00:00:32]}
{[%emt 00:00:03]} 51. Ba3 {[%clk 00:00:45]} {[%emt 00:00:11]} Ke8 {[%clk
00:00:34]} {[%emt 00:00:03]} 52. Kd6 {[%clk 00:00:49]} {[%emt 00:00:02]} Bd7
{[%clk 00:00:33]} {[%emt 00:00:06]} 53. Kc7 {[%clk 00:00:50]} {[%emt 00:00:04]}
Bf5 {[%clk 00:00:35]} {[%emt 00:00:02]} 54. Bb4 {[%clk 00:00:54]} {[%emt
00:00:01]} Bd7 {[%clk 00:00:39]} 55. Ba3 {[%clk 00:00:59]} Bf5 {[%clk
00:00:44]} 56. Bb4 {[%clk 00:01:03]} {[%emt 00:00:01]} 1/2-1/2

[Event "Open NK Rapid 2025"]
[Site "Helmond, Netherlands"]
[Date "2025.05.03"]
[Round "7.3"]
[White "Bok, Benjamin"]
[Black "Kuipers-Haast, Anne"]
[Result "1-0"]
[TimeControl "15+5"]
[WhiteFideId "1017063"]
[BlackFideId "1017292"]
[WhiteElo "2583"]
[BlackElo "2272"]

1. Nf3 {[%clk 00:15:08]} {[%emt 00:00:02]} f5 {[%clk 00:15:08]} {[%emt
00:00:02]} 2. g3 {[%clk 00:15:03]} {[%emt 00:00:09]} Nf6 {[%clk 00:15:11]}
{[%emt 00:00:02]} 3. Bg2 {[%clk 00:15:05]} {[%emt 00:00:04]} g6 {[%clk
00:15:06]} {[%emt 00:00:10]} 4. O-O {[%clk 00:14:59]} {[%emt 00:00:10]} Bg7
{[%clk 00:15:09]} {[%emt 00:00:03]} 5. d4 {[%clk 00:15:03]} {[%emt 00:00:01]}
d6 {[%clk 00:15:03]} {[%emt 00:00:11]} 6. c4 {[%clk 00:15:03]} {[%emt
00:00:04]} O-O {[%clk 00:15:05]} {[%emt 00:00:03]} 7. Nc3 {[%clk 00:15:06]}
{[%emt 00:00:02]} c6 {[%clk 00:15:01]} {[%emt 00:00:09]} 8. b3 {[%clk
00:15:10]} {[%emt 00:00:02]} Qc7 {[%clk 00:14:08]} {[%emt 00:00:58]} 9. Ba3
{[%clk 00:14:11]} {[%emt 00:01:04]} a5 {[%clk 00:14:04]} {[%emt 00:00:09]} 10.
Re1 {[%clk 00:14:11]} {[%emt 00:00:05]} Na6 {[%clk 00:13:27]} {[%emt 00:00:41]}
11. Qd2 {[%clk 00:11:19]} {[%emt 00:02:58]} Nb4 {[%clk 00:12:31]} {[%emt
00:01:01]} 12. Bb2 {[%clk 00:10:42]} {[%emt 00:00:41]} e5 {[%clk 00:12:02]}
{[%emt 00:00:35]} 13. a3 {[%clk 00:10:35]} {[%emt 00:00:12]} Na6 {[%clk
00:12:01]} {[%emt 00:00:07]} 14. e4 {[%clk 00:10:18]} {[%emt 00:00:21]} fxe4
{[%clk 00:08:38]} {[%emt 00:03:27]} 15. Nxe4 {[%clk 00:10:17]} {[%emt
00:00:07]} Nxe4 {[%clk 00:08:40]} {[%emt 00:00:02]} 16. Rxe4 {[%clk 00:10:20]}
{[%emt 00:00:02]} Bf5 {[%clk 00:08:42]} {[%emt 00:00:03]} 17. Ree1 {[%clk
00:10:09]} {[%emt 00:00:16]} Rae8 {[%clk 00:08:35]} {[%emt 00:00:12]} 18. Bc3
{[%clk 00:09:35]} {[%emt 00:00:39]} a4 {[%clk 00:08:25]} {[%emt 00:00:15]} 19.
b4 {[%clk 00:08:35]} {[%emt 00:01:05]} Bg4 {[%clk 00:08:20]} {[%emt 00:00:10]}
20. dxe5 {[%clk 00:06:11]} {[%emt 00:02:29]} dxe5 {[%clk 00:08:08]} {[%emt
00:00:17]} 21. Ng5 {[%clk 00:05:50]} {[%emt 00:00:26]} h6 {[%clk 00:07:47]}
{[%emt 00:00:27]} 22. Ne4 {[%clk 00:05:51]} {[%emt 00:00:03]} Bf3 {[%clk
00:05:56]} {[%emt 00:01:57]} 23. Nd6 {[%clk 00:05:23]} {[%emt 00:00:33]} Re6
{[%clk 00:05:58]} {[%emt 00:00:02]} 24. c5 {[%clk 00:05:14]} {[%emt 00:00:15]}
Bxg2 {[%clk 00:05:43]} {[%emt 00:00:19]} 25. Kxg2 {[%clk 00:05:17]} {[%emt
00:00:02]} Qe7 {[%clk 00:05:41]} {[%emt 00:00:08]} 26. Re2 {[%clk 00:04:54]}
{[%emt 00:00:27]} Nc7 {[%clk 00:05:19]} {[%emt 00:00:28]} 27. Rae1 {[%clk
00:04:52]} {[%emt 00:00:07]} Nd5 {[%clk 00:05:10]} {[%emt 00:00:14]} 28. Bb2
{[%clk 00:04:36]} {[%emt 00:00:21]} g5 {[%clk 00:04:04]} {[%emt 00:01:11]} 29.
Re4 {[%clk 00:04:04]} {[%emt 00:00:36]} b6 {[%clk 00:03:09]} {[%emt 00:01:01]}
30. R1e2 {[%clk 00:02:44]} {[%emt 00:01:25]} Rb8 {[%clk 00:02:59]} {[%emt
00:00:14]} 31. Qe1 {[%clk 00:01:46]} {[%emt 00:01:03]} bxc5 {[%clk 00:02:06]}
{[%emt 00:00:59]} 32. bxc5 {[%clk 00:01:50]} {[%emt 00:00:02]} Qa7 {[%clk
00:02:07]} {[%emt 00:00:04]} 33. Bxe5 {[%clk 00:01:34]} {[%emt 00:00:20]} Qxc5
{[%clk 00:01:18]} {[%emt 00:00:55]} 34. Bxg7 {[%clk 00:01:25]} {[%emt
00:00:14]} Rxe4 {[%clk 00:00:51]} {[%emt 00:00:31]} 35. Nxe4 {[%clk 00:01:10]}
{[%emt 00:00:21]} Qxa3 {[%clk 00:00:55]} {[%emt 00:00:01]} 36. Ba1 {[%clk
00:00:44]} {[%emt 00:00:31]} Rf8 {[%clk 00:00:59]} 37. Nc3 {[%clk 00:00:39]}
{[%emt 00:00:09]} Nf6 {[%clk 00:00:53]} {[%emt 00:00:11]} 38. Qb1 {[%clk
00:00:27]} {[%emt 00:00:17]} Qc5 {[%clk 00:00:45]} {[%emt 00:00:13]} 39. Qg6+
{[%clk 00:00:30]} {[%emt 00:00:02]} Kh8 {[%clk 00:00:43]} {[%emt 00:00:07]} 40.
Ne4 {[%clk 00:00:32]} {[%emt 00:00:03]} 1-0